[Event "3rd Yerevan Open-A 2021"]
[Site "Yerevan"]
[Date "2021.10.16"]
[Round "3.4"]
[White "Simonian, Hrair"]
[Black "Petrosian, Tigran L."]
[Result "1/2-1/2"]
[ECO "B15"]
[WhiteElo "2430"]
[BlackElo "2562"]
[Annotator "ChessBase"]
[PlyCount "126"]
[EventDate "2021.10.14"]
[EventType "swiss"]
[EventCountry "ARM"]
[SourceTitle "playchess.com"]
[Source "ChessBase"]
[SourceQuality "1"]
[TimeControl "40/5400+30:1800+30"]

1. e4 {[%emt 0:01:39]} c6 {[%emt 0:21:17]} 2. d4 {[%emt 0:00:16]} d5 {[%emt 0:00:04]} 3. Nc3 {[%emt 0:00:12]} dxe4 {[%emt 0:00:05]} 4. Nxe4 {[%emt 0:00:08]} Nf6 {[%emt 0:01:38]} 5. Nxf6+ {[%emt 0:00:43]} exf6 {[%emt 0:00:06]} 6. c3 {[%emt 0:00:36]} Bd6 {[%emt 0:00:06]} 7. Bd3 {[%emt 0:00:39]} O-O {[%emt 0:00:05]} 8. Qc2 {[%emt 0:00:15]} Re8+ {[%emt 0:00:06]} 9. Ne2 {[%emt 0:00:08]} h6 {[%emt 0:03:35]} 10. Be3 {[%emt 0:02:20]} Be6 {[%emt 0:01:32]} 11. h4 {[%emt 0:12:32]} Qa5 {[%emt 0:07:23]} 12. a3 {[%emt 0:04:46]} Nd7 {[%emt 0:00:58]} 13. b4 {[%emt 0:03:54]} Qc7 {[%emt 0:08:55]} 14. c4 {[%emt 0:04:13]} a5 {[%emt 0:08:43]} 15. c5 {[%emt 0:01:31]} Bf8 {[%emt 0:10:36]} 16. O-O {[%emt 0:07:47]} Qd8 {[%emt 0:05:49]} 17. Nf4 {[%emt 0:06:16]} f5 {[%emt 0:08:52]} 18. h5 {[%emt 0:03:40]} Nf6 {[%emt 0:04:23]} 19. Bxf5 {[%emt 0:01:22]} Bd5 {[%emt 0:01:19]} 20. Qd3 {[%emt 0:06:59]} b5 {[%emt 0:03:08]} 21. Rfe1 {[%emt 0:00:53]} Bc4 {[%emt 0:00:43]} 22. Qd1 {[%emt 0:06:59]} Ra7 {[%emt 0:10:14]} 23. Qf3 {[%emt 0:02:32]} Qa8 {[%emt 0:01:05]} 24. Rad1 {[%emt 0:03:54]} axb4 {[%emt 0:00:14]} 25. axb4 {[%emt 0:00:02]} Ra3 {[%emt 0:00:13]} 26. Nd3 {[%emt 0:03:39]} Bb3 {[%emt 0:01:18]} 27. Rc1 {[%emt 0:01:28]} Bd5 {[%emt 0:00:05]} 28. Qh3 {[%emt 0:00:21]} Be6 {[%emt 0:01:24]} 29. Ne5 {[%emt 0:00:54]} Nd5 {[%emt 0:00:30]} 30. Qf3 {[%emt 0:01:34]} Bxf5 {[%emt 0:00:30]} 31. Qxf5 {[%emt 0:00:02]} f6 {[%emt 0:00:13]} 32. Ng4 {[%emt 0:00:35]} Kh8 {[%emt 0:00:45]} 33. Bd2 {[%emt 0:03:54]} Rxe1+ {[%emt 0:00:33]} 34. Rxe1 {[%emt 0:00:03]} Ra1 {[%emt 0:00:09]} 35. Bc1 {[%emt 0:02:37]} Nxb4 {[%emt 0:00:53]} 36. Qg6 {[%emt 0:02:18]} Qa2 {[%emt 0:00:26]} 37. Nxf6 {[%emt 0:07:02]} gxf6 {[%emt 0:00:04]} 38. Re8 {[%emt 0:00:35]} Rxc1+ {[%emt 0:00:30]} 39. Kh2 {[%emt 0:00:01]} Qg8 {[%emt 0:00:19]} 40. Qxf6+ {[%emt 0:00:00]} Bg7 {[%emt 0:00:00]} 41. Qf7 {[%emt 0:00:38]} Qxe8 {[%emt 0:00:19]} 42. Qxe8+ {[%emt 0:00:01]} Kh7 {[%emt 0:00:06]} 43. g4 {[%emt 0:01:05]} Rc4 {[%emt 0:12:53]} 44. f4 {[%emt 0:06:23]} Rxd4 {[%emt 0:01:25]} 45. g5 {[%emt 0:00:19]} hxg5 {[%emt 0:00:04]} 46. fxg5 {[%emt 0:00:55]} Rd2+ {[%emt 0:09:29]} 47. Kg3 {[%emt 0:01:17]} Rd3+ {[%emt 0:05:04]} 48. Kg4 {[%emt 0:03:54]} Rd4+ {[%emt 0:00:15]} 49. Kf3 {[%emt 0:00:49]} Nd3 {[%emt 0:03:20]} 50. h6 {[%emt 0:05:15]} Ne5+ {[%emt 0:00:11]} 51. Ke3 {[%emt 0:01:11]} Nc4+ {[%emt 0:03:33]} 52. Ke2 {[%emt 0:02:40]} Rd2+ {[%emt 0:00:23]} 53. Kf1 {[%emt 0:03:24]} Bd4 {[%emt 0:00:31]} 54. Qf7+ {[%emt 0:05:46]} Kh8 {[%emt 0:00:02]} 55. Qf8+ {[%emt 0:00:24]} Kh7 {[%emt 0:00:02]} 56. Qf7+ {[%emt 0:04:30]} Kh8 {[%emt 0:00:07]} 57. Qe8+ {[%emt 0:00:19]} Kh7 {[%emt 0:00:11]} 58. Qe4+ {[%emt 0:00:02]} Kh8 {[%emt 0:00:11]} 59. g6 {[%emt 0:08:29]} Rf2+ {[%emt 0:00:20]} 60. Ke1 {[%emt 0:00:08]} Rf1+ {[%emt 0:00:06]} 61. Ke2 {[%emt 0:00:13]} Rf2+ {[%emt 0:00:06]} 62. Ke1 {[%emt 0:00:17]} Rf1+ {[%emt 0:00:04]} 63. Ke2 {[%emt 0:00:04]} Rf2+ {[%emt 0:00:04]} 1/2-1/2

[Event "3rd Yerevan Open-A 2021"]
[Site "Yerevan"]
[Date "2021.10.16"]
[Round "3.5"]
[White "Pranav Anand"]
[Black "Sychev, Klementy"]
[Result "0-1"]
[ECO "D20"]
[WhiteElo "2430"]
[BlackElo "2555"]
[Annotator "ChessBase"]
[PlyCount "60"]
[EventDate "2021.10.14"]
[EventType "swiss"]
[EventCountry "ARM"]
[SourceTitle "playchess.com"]
[Source "ChessBase"]
[SourceQuality "1"]
[TimeControl "40/5400+30:1800+30"]

1. d4 {[%emt 0:00:04]} d5 {[%emt 0:01:09]} 2. c4 {[%emt 0:00:12]} dxc4 {[%emt 0:00:45]} 3. e4 {[%emt 0:00:05]} b5 {[%emt 0:01:00]} 4. a4 {[%emt 0:00:50]} c6 {[%emt 0:00:15]} 5. axb5 {[%emt 0:01:42]} cxb5 {[%emt 0:00:13]} 6. Nc3 {[%emt 0:00:03]} Qb6 {[%emt 0:00:11]} 7. Nd5 {[%emt 0:16:04]} Qb7 {[%emt 0:00:13]} 8. Bf4 {[%emt 0:00:18]} e5 {[%emt 0:00:06]} 9. dxe5 {[%emt 0:00:59]} Be6 {[%emt 0:00:17]} 10. Be2 {[%emt 0:14:26]} Ne7 {[%emt 0:10:35]} 11. Bg5 {[%emt 0:09:36]} Nbc6 {[%emt 0:25:31]} 12. Nf3 {[%emt 0:06:20]} h6 {[%emt 0:10:11]} 13. Bh4 {[%emt 0:01:06]} Ng6 {[%emt 0:08:18]} 14. Bg3 {[%emt 0:01:12]} Bb4+ {[%emt 0:04:32]} 15. Kf1 {[%emt 0:07:54]} O-O {[%emt 0:05:00]} 16. Qc2 {[%emt 0:12:13]} Rfd8 {[%emt 0:03:53]} 17. Rd1 {[%emt 0:00:30]} a5 {[%emt 0:04:04]} 18. h4 {[%emt 0:03:45]} Nge7 {[%emt 0:00:19]} 19. Bf4 {[%emt 0:05:21]} Nxd5 {[%emt 0:05:20]} 20. exd5 {[%emt 0:00:02]} Rxd5 {[%emt 0:00:07]} 21. Rxd5 {[%emt 0:01:59]} Bxd5 {[%emt 0:00:07]} 22. Kg1 {[%emt 0:00:04]} Ne7 {[%emt 0:07:30]} 23. Rh3 {[%emt 0:03:04]} Be6 {[%emt 0:00:31]} 24. Rg3 {[%emt 0:03:14]} Nf5 {[%emt 0:00:07]} 25. Rh3 {[%emt 0:00:32]} Rd8 {[%emt 0:00:13]} 26. Qc1 {[%emt 0:07:37]} Qe4 {[%emt 0:02:07]} 27. Bd1 {[%emt 0:00:09]} Rxd1+ {[%emt 0:00:53]} 28. Qxd1 {[%emt 0:00:01]} Qxf4 {[%emt 0:00:08]} 29. h5 {[%emt 0:00:33]} Qe4 {[%emt 0:00:52]} 30. Qc1 {[%emt 0:01:56]} Nd4 {[%emt 0:00:20]} 0-1

[Event "3rd Yerevan Open-A 2021"]
[Site "Yerevan"]
[Date "2021.10.16"]
[Round "3.6"]
[White "Hayrapetyan, Hovik"]
[Black "Daghli, Arash"]
[Result "0-1"]
[ECO "E60"]
[WhiteElo "2500"]
[BlackElo "2427"]
[Annotator "ChessBase"]
[PlyCount "142"]
[EventDate "2021.10.14"]
[EventType "swiss"]
[EventCountry "ARM"]
[SourceTitle "playchess.com"]
[Source "ChessBase"]
[SourceQuality "1"]
[TimeControl "40/5400+30:1800+30"]

1. d4 {[%emt 0:00:04]} Nf6 {[%emt 0:00:07]} 2. Nf3 {[%emt 0:02:00]} g6 {[%emt 0:00:10]} 3. c4 {[%emt 0:05:12]} Bg7 {[%emt 0:00:25]} 4. g3 {[%emt 0:00:40]} O-O {[%emt 0:00:11]} 5. Bg2 {[%emt 0:00:02]} d6 {[%emt 0:00:08]} 6. O-O {[%emt 0:00:53]} Nc6 {[%emt 0:00:06]} 7. b3 {[%emt 0:00:53]} e5 {[%emt 0:00:37]} 8. dxe5 {[%emt 0:01:06]} dxe5 {[%emt 0:00:48]} 9. Bb2 {[%emt 0:05:48]} e4 {[%emt 0:06:41]} 10. Nd4 {[%emt 0:02:50]} Nxd4 {[%emt 0:05:08]} 11. Qxd4 {[%emt 0:08:03]} Bf5 {[%emt 0:06:30]} 12. Rd1 {[%emt 0:15:54]} Qc8 {[%emt 0:14:12]} 13. Nc3 {[%emt 0:02:10]} Re8 {[%emt 0:30:23]} 14. Nd5 {[%emt 0:07:53]} Nh5 {[%emt 0:01:48]} 15. Qd2 {[%emt 0:00:53]} Bxb2 {[%emt 0:01:19]} 16. Qxb2 {[%emt 0:00:06]} c6 {[%emt 0:01:05]} 17. Ne3 {[%emt 0:01:30]} Qe6 {[%emt 0:00:45]} 18. Rd4 {[%emt 0:05:13]} Nf6 {[%emt 0:03:22]} 19. Rad1 {[%emt 0:03:02]} Qe5 {[%emt 0:01:22]} 20. Qa3 {[%emt 0:05:09]} a5 {[%emt 0:03:53]} 21. Qd6 {[%emt 0:05:55]} Qxd6 {[%emt 0:04:04]} 22. Rxd6 {[%emt 0:00:06]} Be6 {[%emt 0:00:09]} 23. R1d4 {[%emt 0:03:45]} Kg7 {[%emt 0:04:38]} 24. g4 {[%emt 0:09:49]} h6 {[%emt 0:00:12]} 25. c5 {[%emt 0:03:08]} a4 {[%emt 0:00:42]} 26. bxa4 {[%emt 0:03:58]} Ra5 {[%emt 0:01:24]} 27. Bxe4 {[%emt 0:02:43]} Rxc5 {[%emt 0:00:37]} 28. Bf3 {[%emt 0:01:01]} Ra8 {[%emt 0:05:33]} 29. Rb4 {[%emt 0:00:32]} Ra7 {[%emt 0:00:13]} 30. Rd8 {[%emt 0:01:18]} Nd7 {[%emt 0:01:45]} 31. Rc8 {[%emt 0:02:30]} Rca5 {[%emt 0:00:53]} 32. Rc7 {[%emt 0:01:44]} Nc5 {[%emt 0:00:01]} 33. a3 {[%emt 0:00:38]} Rxa4 {[%emt 0:02:40]} 34. Nc2 {[%emt 0:00:27]} Rxb4 {[%emt 0:01:16]} 35. Nxb4 {[%emt 0:00:34]} Rxa3 {[%emt 0:00:32]} 36. Kg2 {[%emt 0:00:00]} Rb3 {[%emt 0:03:00]} 37. Nxc6 {[%emt 0:01:00]} bxc6 {[%emt 0:00:32]} 38. h3 {[%emt 0:00:04]} Nd7 {[%emt 0:01:08]} 39. Bxc6 {[%emt 0:00:02]} Rc3 {[%emt 0:00:24]} 40. Rxd7 {[%emt 0:00:00]} Rxc6 {[%emt 0:00:00]} 41. Rd2 {[%emt 0:00:12]} Ra6 {[%emt 0:01:26]} 42. e3 {[%emt 0:01:52]} Kf6 {[%emt 0:00:21]} 43. Rd8 {[%emt 0:00:34]} Ra5 {[%emt 0:00:53]} 44. Kg3 {[%emt 0:00:10]} Rd5 {[%emt 0:01:02]} 45. Rb8 {[%emt 0:01:48]} Rd1 {[%emt 0:00:23]} 46. Rh8 {[%emt 0:01:37]} Bd5 {[%emt 0:02:04]} 47. f3 {[%emt 0:01:23]} Rf1 {[%emt 0:01:32]} 48. e4 {[%emt 0:01:21]} Bc4 {[%emt 0:00:15]} 49. Rc8 {[%emt 0:00:51]} Be2 {[%emt 0:00:28]} 50. Rc3 {[%emt 0:00:02]} Ke5 {[%emt 0:00:51]} 51. Re3 {[%emt 0:00:02]} Bc4 {[%emt 0:00:29]} 52. Ra3 {[%emt 0:00:32]} Rg1+ {[%emt 0:00:32]} 53. Kf2 {[%emt 0:00:09]} Rb1 {[%emt 0:00:06]} 54. Kg3 {[%emt 0:00:22]} Rb3 {[%emt 0:00:27]} 55. Ra7 {[%emt 0:00:38]} Kd4 {[%emt 0:00:52]} 56. h4 {[%emt 0:00:21]} Ke3 {[%emt 0:01:15]} 57. Rc7 {[%emt 0:01:46]} Be6 {[%emt 0:01:24]} 58. Ra7 {[%emt 0:00:50]} Rd3 {[%emt 0:00:32]} 59. Rc7 {[%emt 0:00:27]} Bb3 {[%emt 0:00:23]} 60. Rc6 {[%emt 0:00:19]} Ke2 {[%emt 0:00:37]} 61. Rf6 {[%emt 0:00:09]} Be6 {[%emt 0:01:09]} 62. h5 {[%emt 0:02:55]} g5 {[%emt 0:01:32]} 63. Kg2 {[%emt 0:00:06]} Rc3 {[%emt 0:00:18]} 64. Kg3 {[%emt 0:00:23]} Rc1 {[%emt 0:00:58]} 65. Rxh6 {[%emt 0:00:59]} Rg1+ {[%emt 0:00:12]} 66. Kh2 {[%emt 0:00:08]} Kf2 {[%emt 0:00:56]} 67. Rf6 {[%emt 0:04:16]} Rg2+ {[%emt 0:00:40]} 68. Kh3 {[%emt 0:00:57]} Kg1 {[%emt 0:05:05]} 69. h6 {[%emt 0:08:03]} Rb2 {[%emt 0:01:30]} 70. h7 {[%emt 0:00:43]} Bc4 {[%emt 0:00:45]} 71. h8=Q {[%emt 0:00:57]} Bf1+ {[%emt 0:00:06]} 0-1

[Event "3rd Yerevan Open-A 2021"]
[Site "Yerevan"]
[Date "2021.10.16"]
[Round "3.7"]
[White "Sidhant, Mohapatra"]
[Black "Mikaelyan, Arman"]
[Result "0-1"]
[ECO "A38"]
[WhiteElo "2367"]
[BlackElo "2487"]
[Annotator "ChessBase"]
[PlyCount "130"]
[EventDate "2021.10.14"]
[EventType "swiss"]
[EventCountry "ARM"]
[SourceTitle "playchess.com"]
[Source "ChessBase"]
[SourceQuality "1"]
[TimeControl "40/5400+30:1800+30"]

1. c4 {[%emt 0:00:19]} g6 {[%emt 0:01:53]} 2. Nc3 {[%emt 0:01:27]} Bg7 {[%emt 0:00:07]} 3. Nf3 {[%emt 0:00:18]} Nf6 {[%emt 1:30:00]} 4. g3 {[%emt 1:30:26]} O-O {[%emt 0:00:00]} 5. Bg2 {[%emt 0:00:00]} c5 {[%emt 0:00:00]} 6. d4 {[%emt 0:00:00]} cxd4 {[%emt 0:01:30]} 7. Nxd4 {[%emt 0:01:30]} Nc6 {[%emt 0:00:30]} 8. Nc2 {[%emt 0:00:30]} d6 {[%emt 0:00:30]} 9. O-O {[%emt 0:00:30]} Nd7 {[%emt 0:00:30]} 10. Bd2 {[%emt 0:00:30]} a5 {[%emt 0:00:30]} 11. b3 {[%emt 0:00:30]} Nc5 {[%emt 0:00:30]} 12. Rb1 {[%emt 0:00:30]} Bd7 {[%emt 0:00:30]} 13. h3 {[%emt 0:00:30]} h5 {[%emt 0:00:30]} 14. Nd5 {[%emt 0:00:30]} Bf5 {[%emt 0:00:30]} 15. Nde3 {[%emt 0:00:30]} Be4 {[%emt 0:00:30]} 16. f3 {[%emt 0:00:30]} Bxc2 {[%emt 0:00:30]} 17. Nxc2 {[%emt 0:00:30]} Nb4 {[%emt 0:00:30]} 18. a4 {[%emt 0:00:30]} Na2 {[%emt 0:00:30]} 19. e4 {[%emt 0:00:30]} e6 {[%emt 0:00:30]} 20. f4 {[%emt 0:00:30]} Nc3 {[%emt 0:00:30]} 21. Bxc3 {[%emt 0:00:30]} Bxc3 {[%emt 0:00:30]} 22. Qf3 {[%emt 0:00:30]} Bg7 {[%emt 0:00:30]} 23. Kh1 {[%emt 0:00:30]} Qf6 {[%emt 0:00:30]} 24. Na3 {[%emt 0:00:30]} h4 {[%emt 0:00:30]} 25. Nb5 {[%emt 0:00:30]} hxg3 {[%emt 0:00:30]} 26. Qxg3 {[%emt 0:00:30]} Rad8 {[%emt 0:00:30]} 27. Rbd1 {[%emt 0:00:30]} Qe7 {[%emt 0:00:30]} 28. Rd2 {[%emt 0:00:30]} Bh6 {[%emt 0:00:30]} 29. Rdf2 {[%emt 0:00:30]} Kh7 {[%emt 0:00:30]} 30. f5 {[%emt 0:00:30]} gxf5 {[%emt 0:00:30]} 31. exf5 {[%emt 0:00:30]} Rg8 {[%emt 0:00:30]} 32. Qf3 {[%emt 0:00:30]} Qh4 {[%emt 0:00:30]} 33. fxe6 {[%emt 0:00:30]} fxe6 {[%emt 0:00:30]} 34. Qf6 {[%emt 0:00:30]} Qxf6 {[%emt 0:00:30]} 35. Rxf6 {[%emt 0:00:30]} Rg3 {[%emt 0:00:30]} 36. R6f3 {[%emt 0:00:30]} Rxf3 {[%emt 0:00:30]} 37. Rxf3 {[%emt 0:00:30]} Kg6 {[%emt 0:00:30]} 38. h4 {[%emt 0:00:30]} Kh5 {[%emt 0:00:30]} 39. Nd4 {[%emt 0:00:30]} Bg7 {[%emt 0:00:30]} 40. Ne2 {[%emt 0:00:30]} Kxh4 {[%emt 0:00:30]} 41. Nf4 {[%emt 0:30:30]} Kg4 {[%emt 0:30:30]} 42. Nd3 {[%emt 0:00:30]} Rh8+ {[%emt 0:00:30]} 43. Kg1 {[%emt 0:00:30]} Bd4+ {[%emt 0:00:30]} 44. Kf1 Nxb3 {[%emt 0:00:30]} 45. Nf2+ {[%emt 0:01:00]} Bxf2 {[%emt 0:00:30]} 46. Rxb3 {[%emt 0:00:30]} Bc5 {[%emt 0:00:30]} 47. Rxb7 {[%emt 0:00:30]} Kf5 {[%emt 0:00:30]} 48. Rb5 {[%emt 0:00:30]} Rh4 {[%emt 0:00:30]} 49. Rxa5 {[%emt 0:00:30]} Rxc4 {[%emt 0:00:30]} 50. Ra8 {[%emt 0:00:30]} Rc1+ {[%emt 0:00:30]} 51. Ke2 {[%emt 0:00:30]} Rc2+ {[%emt 0:00:30]} 52. Kf3 {[%emt 0:00:30]} Rc3+ {[%emt 0:00:30]} 53. Ke2 {[%emt 0:00:30]} d5 {[%emt 0:00:30]} 54. a5 {[%emt 0:00:30]} Kf4 {[%emt 0:00:30]} 55. Rc8 {[%emt 0:00:30]} Rc2+ {[%emt 0:00:30]} 56. Kf1 Ke3 {[%emt 0:00:30]} 57. Bh3 {[%emt 0:01:00]} Kf3 {[%emt 0:00:30]} 58. Bg2+ {[%emt 0:00:30]} Rxg2 {[%emt 0:00:30]} 59. Rxc5 {[%emt 0:00:30]} Ra2 {[%emt 0:00:30]} 60. Rc3+ {[%emt 0:00:30]} Kf4 {[%emt 0:00:30]} 61. Rc6 {[%emt 0:00:30]} e5 {[%emt 0:00:30]} 62. Ra6 {[%emt 0:00:30]} e4 {[%emt 0:00:30]} 63. Ra8 {[%emt 0:00:30]} d4 {[%emt 0:00:30]} 64. a6 {[%emt 0:00:30]} Ke3 {[%emt 0:00:30]} 65. a7 {[%emt 0:00:30]} d3 {[%emt 0:00:30]} 0-1

[Event "3rd Yerevan Open-A 2021"]
[Site "Yerevan"]
[Date "2021.10.16"]
[Round "3.8"]
[White "Kunal, M.."]
[Black "Shahinyan, David"]
[Result "1-0"]
[ECO "C04"]
[WhiteElo "2290"]
[BlackElo "2469"]
[Annotator "ChessBase"]
[PlyCount "153"]
[EventDate "2021.10.14"]
[EventType "swiss"]
[EventCountry "ARM"]
[SourceTitle "playchess.com"]
[Source "ChessBase"]
[SourceQuality "1"]
[TimeControl "40/5400+30:1800+30"]

1. e4 {[%emt 0:00:04]} e6 {[%emt 0:01:55]} 2. d4 {[%emt 0:00:05]} d5 {[%emt 0:00:03]} 3. Nd2 {[%emt 0:00:07]} Nc6 {[%emt 0:00:56]} 4. Ngf3 {[%emt 0:00:12]} Nf6 {[%emt 0:00:22]} 5. e5 {[%emt 0:00:07]} Nd7 {[%emt 0:00:12]} 6. Bb5 {[%emt 0:00:07]} a6 {[%emt 0:02:29]} 7. Bxc6 {[%emt 0:00:06]} bxc6 {[%emt 0:00:02]} 8. c4 {[%emt 0:00:08]} dxc4 {[%emt 0:03:04]} 9. Nxc4 {[%emt 0:00:06]} Nb6 {[%emt 0:04:30]} 10. Na5 {[%emt 0:00:07]} Qd5 {[%emt 0:05:50]} 11. Bd2 {[%emt 0:00:07]} c5 {[%emt 0:03:01]} 12. dxc5 {[%emt 0:00:10]} Bxc5 {[%emt 0:00:23]} 13. O-O {[%emt 0:00:22]} Be7 {[%emt 0:12:16]} 14. Qc2 {[%emt 0:04:00]} Qd7 {[%emt 0:02:52]} 15. Rfd1 {[%emt 0:02:57]} Nd5 {[%emt 0:02:39]} 16. Bg5 {[%emt 0:14:30]} Bxg5 {[%emt 0:11:36]} 17. Nxg5 {[%emt 0:00:11]} h6 {[%emt 0:00:01]} 18. Ne4 {[%emt 0:02:48]} Rb8 {[%emt 0:04:26]} 19. a3 {[%emt 0:04:58]} O-O {[%emt 0:04:37]} 20. b4 {[%emt 0:03:54]} Rb5 {[%emt 0:02:05]} 21. Nc3 {[%emt 0:15:37]} Rb6 {[%emt 0:03:30]} 22. Rac1 {[%emt 0:00:52]} Bb7 {[%emt 0:10:01]} 23. Nxd5 {[%emt 0:07:07]} Bxd5 {[%emt 0:00:53]} 24. Qxc7 {[%emt 0:00:14]} Qb5 {[%emt 0:00:40]} 25. Qc5 {[%emt 0:00:38]} Rfb8 {[%emt 0:02:32]} 26. Qxb5 {[%emt 0:00:16]} Rxb5 {[%emt 0:00:13]} 27. f3 {[%emt 0:04:37]} g5 {[%emt 0:02:42]} 28. Kf2 {[%emt 0:09:32]} Kg7 {[%emt 0:01:48]} 29. Rc7 {[%emt 0:01:04]} Kg6 {[%emt 0:04:51]} 30. Rdc1 {[%emt 0:02:27]} h5 {[%emt 0:01:13]} 31. Ra7 {[%emt 0:04:15]} Ra8 {[%emt 0:01:39]} 32. Rxa8 {[%emt 0:01:20]} Bxa8 {[%emt 0:00:02]} 33. Nc4 {[%emt 0:04:16]} f6 {[%emt 0:04:48]} 34. exf6 {[%emt 0:03:23]} Kxf6 {[%emt 0:00:01]} 35. Ke3 {[%emt 0:04:56]} g4 {[%emt 0:03:01]} 36. Nd6 {[%emt 0:01:42]} Rb6 {[%emt 0:00:29]} 37. Ne4+ {[%emt 0:00:07]} Bxe4 {[%emt 0:00:29]} 38. fxe4 {[%emt 0:04:09]} a5 {[%emt 0:00:17]} 39. Rb1 {[%emt 0:00:07]} axb4 {[%emt 0:01:05]} 40. axb4 {[%emt 0:00:00]} Rb5 {[%emt 0:00:00]} 41. Kd4 {[%emt 0:00:54]} Ke7 {[%emt 0:05:00]} 42. Kc4 {[%emt 0:00:11]} Re5 {[%emt 0:01:39]} 43. b5 {[%emt 0:04:36]} Kd7 {[%emt 0:05:01]} 44. Kd4 {[%emt 0:01:07]} Rg5 {[%emt 0:00:07]} 45. b6 {[%emt 0:00:25]} Kc8 {[%emt 0:00:15]} 46. Rc1+ {[%emt 0:04:49]} Kb7 {[%emt 0:01:37]} 47. Rc5 {[%emt 0:00:05]} Rg8 {[%emt 0:00:35]} 48. Rxh5 {[%emt 0:00:29]} Rd8+ {[%emt 0:01:29]} 49. Ke3 {[%emt 0:01:15]} Kxb6 {[%emt 0:00:48]} 50. Rh6 {[%emt 0:00:35]} Kc5 {[%emt 0:00:17]} 51. Rxe6 {[%emt 0:00:26]} Rh8 {[%emt 0:00:01]} 52. Rg6 {[%emt 0:00:24]} Rxh2 {[%emt 0:00:10]} 53. Rxg4 {[%emt 0:00:11]} Kd6 {[%emt 0:00:11]} 54. Kf3 {[%emt 0:02:01]} Ke5 {[%emt 0:04:41]} 55. Rf4 {[%emt 0:01:26]} Rh1 {[%emt 0:04:09]} 56. Rf5+ {[%emt 0:00:08]} Ke6 {[%emt 0:00:01]} 57. g4 {[%emt 0:00:28]} Re1 {[%emt 0:04:05]} 58. Kf4 {[%emt 0:00:15]} Re2 {[%emt 0:00:04]} 59. e5 {[%emt 0:09:34]} Rf2+ {[%emt 0:01:37]} 60. Kg5 {[%emt 0:00:08]} Rg2 {[%emt 0:00:06]} 61. Kh5 {[%emt 0:00:53]} Rg1 {[%emt 0:00:05]} 62. Rf2 {[%emt 0:00:32]} Ke7 {[%emt 0:03:34]} 63. g5 {[%emt 0:00:26]} Ke6 {[%emt 0:00:09]} 64. Kh6 {[%emt 0:00:14]} Rh1+ {[%emt 0:01:04]} 65. Kg7 {[%emt 0:00:05]} Ke7 {[%emt 0:00:01]} 66. g6 {[%emt 0:00:14]} Rh3 {[%emt 0:00:12]} 67. Kg8 {[%emt 0:00:15]} Rg3 {[%emt 0:00:10]} 68. g7 {[%emt 0:00:09]} Rh3 {[%emt 0:00:02]} 69. Rf7+ {[%emt 0:02:20]} Ke8 {[%emt 0:00:04]} 70. e6 {[%emt 0:00:11]} Rh1 {[%emt 0:00:25]} 71. e7 {[%emt 0:00:23]} Rg1 {[%emt 0:00:31]} 72. Rf8+ {[%emt 0:01:48]} Kxe7 {[%emt 0:00:03]} 73. Rf7+ {[%emt 0:01:34]} Ke8 {[%emt 0:00:04]} 74. Rf6 {[%emt 0:02:37]} Ke7 {[%emt 0:00:48]} 75. Rh6 {[%emt 0:00:19]} Rg2 {[%emt 0:00:06]} 76. Rh1 {[%emt 0:02:18]} Kf6 {[%emt 0:00:06]} 77. Kh8 {[%emt 0:01:00]} 1-0

[Event "3rd Yerevan Open-A 2021"]
[Site "Yerevan"]
[Date "2021.10.16"]
[Round "3.12"]
[White "Goganov, Aleksey"]
[Black "Daneshvar, Bardiya"]
[Result "1-0"]
[ECO "E04"]
[WhiteElo "2557"]
[BlackElo "2403"]
[Annotator "ChessBase"]
[PlyCount "33"]
[EventDate "2021.10.14"]
[EventType "swiss"]
[EventCountry "ARM"]
[SourceTitle "playchess.com"]
[Source "ChessBase"]
[SourceQuality "1"]
[TimeControl "40/5400+30:1800+30"]

1. d4 {[%emt 0:00:07]} d5 {[%emt 0:00:05]} 2. c4 {[%emt 0:00:04]} e6 {[%emt 0:00:45]} 3. Nf3 {[%emt 0:00:14]} Nf6 {[%emt 0:00:32]} 4. g3 {[%emt 0:00:45]} dxc4 {[%emt 0:03:08]} 5. Bg2 {[%emt 0:02:20]} c6 {[%emt 0:01:48]} 6. a4 {[%emt 0:01:03]} c5 {[%emt 0:04:28]} 7. O-O {[%emt 0:00:07]} Nc6 {[%emt 0:00:24]} 8. dxc5 {[%emt 0:00:10]} Qxd1 {[%emt 0:01:04]} 9. Rxd1 {[%emt 0:00:13]} Bxc5 {[%emt 0:00:44]} 10. Nbd2 {[%emt 0:03:53]} c3 {[%emt 0:17:17]} 11. bxc3 {[%emt 0:03:43]} Bd7 {[%emt 0:02:23]} 12. Nb3 {[%emt 0:01:43]} Be7 {[%emt 0:01:05]} 13. Nfd4 {[%emt 0:05:28]} Rc8 {[%emt 0:15:44]} 14. Nb5 {[%emt 0:03:54]} Nd5 {[%emt 0:09:28]} 15. c4 {[%emt 0:00:55]} Ndb4 {[%emt 0:00:52]} 16. Bb2 {[%emt 0:01:27]} e5 {[%emt 0:03:45]} 17. Rxd7 {[%emt 0:00:57]} 1-0